bitfinex-derivatives/quotes_SOLF0:USTF0_20250819
["timestamp","ask_amount","ask_price","bid_price","bid_amount"]
[1755630415175,3.04,175.87,175.77,6.87819]
[1755630415375,382.04,175.96,175.77,1.18879]
[1755630415376,3.04,175.94,175.77,1.18879]
[1755630415574,3.9926617,175.93,175.77,1.18879]
[1755630415774,3.9926617,175.92,175.81,5.6879]
[1755630415981,5.6874,175.84,175.77,1.18879]
[1755630416390,3.04,175.94,175.77,1.18879]
[1755630416584,3.04,175.91,175.77,1.18879]
[1755630416782,3.04,175.89,175.77,1.18879]
[1755630417187,3.04,175.87,175.77,1.18879]
[1755630417390,3.99227704,175.86,175.77,1.18879]
[1755630417579,3.04,175.87,175.77,1.18879]
[1755630417777,3.99182793,175.86,175.77,1.18879]
[1755630417988,3.04,175.87,175.77,1.18879]
[1755630418186,3.99251425,175.86,175.77,1.18879]
[1755630418380,3.04,175.87,175.77,1.18879]
[1755630419288,3.04,175.87,175.77,6.87819]
[1755630419578,3.04,175.87,175.77,1.18879]
[1755630420184,14.4692,175.92,175.78,0.02]
[1755630420385,3.99227564,175.91,175.8,0.02]
[1755630420582,3.1,175.92,175.8,0.02]
[1755630420985,3.9927873,175.91,175.8,0.02]
[1755630421286,7.0927873,175.9,175.8,0.02]
[1755630421589,3.1,175.9,175.8,0.02]
[1755630422588,385.14,175.96,175.8,0.02]
[1755630422788,385.14,175.96,175.84,0.02]
[1755630422983,7.08656673,175.95,175.84,0.02]
[1755630423184,7.08656673,175.95,175.77,1.18879]
[1755630423185,3.1,175.93,175.79,0.02]
[1755630423394,3.1,175.91,175.79,0.02]
[1755630423588,3.1,175.91,175.79,5.7087]
[1755630423790,3.1,175.91,175.79,0.02]
[1755630424384,3.98695144,175.9,175.79,0.02]
[1755630424593,5.6889,175.79,175.77,1.18879]
[1755630424794,3.1,175.89,175.78,0.02]
[1755630425989,5.6886,175.8,175.78,0.02]
[1755630426193,3.1,175.89,175.79,0.02]
[1755630427896,14.4687,175.93,175.81,0.02]
[1755630428096,14.4687,175.93,175.82,5.6878]
[1755630428389,3.1,175.93,175.81,7.70158292]
[1755630428594,3.1,175.93,175.85,5.6868]
[1755630428794,3.1,175.93,175.82,0.02]
[1755630431394,3.1,175.95,175.86,0.02]
[1755630432596,3.1,175.95,175.83,7.68158292]
[1755630432797,3.1,175.95,175.83,13.36888292]
[1755630432997,3.1,175.95,175.83,7.68158292]
[1755630433196,3.1,175.95,175.84,0.02]
[1755630433390,3.1,175.95,175.86,5.6865]
[1755630433593,3.1,175.95,175.84,0.02]
[1755630434001,5.6856,175.89,175.83,7.68158292]
[1755630434395,5.6856,175.89,175.86,0.02]
[1755630434795,5.6856,175.89,175.83,7.68158292]
[1755630435000,3.1,175.95,175.84,0.02]
[1755630436001,3.1,175.95,175.86,5.6864]
[1755630436301,3.1,175.95,175.84,0.02]
[1755630436697,3.1,175.95,175.87,5.686]
[1755630437201,3.1,175.95,175.87,7.70158292]
[1755630438205,5.6848,175.92,175.88,5.6857]
[1755630438505,5.6848,175.92,175.89,0.02]
[1755630438700,5.6848,175.92,175.88,5.6858]
[1755630439006,3.1,175.95,175.89,0.02]
[1755630439808,220.09772549,175.97,175.9,5.685]
[1755630440110,220.09772549,175.97,175.91,7.68158292]
[1755630440505,220.09772549,175.97,175.94,0.02]
[1755630441306,3.1,176.03,175.95,7.70158292]
[1755630441703,3.1,176.03,175.96,5.6832]
[1755630441908,3.1,176.07,175.95,7.70158292]
[1755630442206,3.1,176.07,175.99,7.68158292]
[1755630442699,3.1,176.07,176.0,5.6818]
[1755630442897,3.1,176.07,175.99,7.68158292]
[1755630443500,3.1,176.07,175.95,7.68158292]
[1755630443704,3.1,176.07,175.96,0.02]
[1755630443904,3.1,176.07,175.98,5.6824]
[1755630444504,3.1,176.07,175.96,0.02]
[1755630445819,3.1,176.07,175.99,7.68158292]
[1755630446011,3.1,176.07,175.99,7.70158292]
[1755630446406,3.1,176.07,175.99,7.68158292]
[1755630447901,3.1,176.07,175.95,159.48158292]
[1755630448603,3.1,176.07,175.97,5.683]
[1755630448804,3.1,176.07,175.95,159.48158292]
[1755630450006,3.1,176.07,175.96,5.6832]
[1755630450206,3.1,176.07,175.95,159.48158292]
[1755630450506,3.1,176.07,175.95,151.8]
[1755630450909,3.1,176.07,175.95,157.4836]
[1755630451104,3.1,176.07,175.95,151.8]
[1755630451300,3.1,176.07,175.96,7.68158292]
[1755630451505,3.1,176.07,175.97,5.6828]
[1755630451705,3.1,176.07,175.96,7.68158292]
[1755630452007,3.1,176.07,175.98,5.6826]
[1755630452511,3.1,176.07,175.96,7.68158292]
[1755630452808,3.01,176.1,176.0,7.68158292]
[1755630453709,3.01,176.15,176.04,7.68158292]
[1755630453907,3.01,176.15,176.08,7.68158292]
[1755630454607,3.01,176.15,176.04,159.24158292]
[1755630455810,3.01,176.15,176.04,164.92228292]
[1755630456015,3.01,176.15,176.04,159.24158292]
[1755630457210,3.01,176.15,175.99,7.68158292]
[1755630457510,3.01,176.13,175.99,7.68158292]
[1755630459717,3.01,176.13,176.02,5.6813]
[1755630459911,3.01,176.13,176.03,7.68158292]
[1755630460505,3.01,176.16,176.07,7.68158292]
[1755630460911,3.01,176.16,176.07,13.36128292]
[1755630461110,3.01,176.16,176.07,7.68158292]
[1755630461918,3.01,176.16,176.07,13.36128292]
[1755630462106,3.01,176.16,176.07,7.68158292]
[1755630462615,3.01,176.16,175.99,7.68158292]
[1755630462917,3.01,176.14,175.99,7.68158292]
[1755630463312,3.01,176.14,176.04,5.6807]
[1755630463811,3.01,176.14,176.03,13.36248292]
[1755630464011,3.01,176.14,176.0,7.68158292]
[1755630464318,3.01,176.14,176.0,13.36358292]
[1755630464619,3.01,176.14,176.0,7.68158292]
[1755630466219,3.01,176.12,176.0,7.68158292]
[1755630466520,3.01,176.12,176.0,13.36338292]
[1755630467122,3.01,176.12,175.98,7.68158292]
[1755630467323,3.01,176.12,175.99,1.16583]
[1755630469519,3.01,176.12,175.99,6.84793]
[1755630469721,3.01,176.12,176.01,7.68158292]
[1755630470117,3.01,176.12,176.02,5.6813]
[1755630470324,3.01,176.12,176.01,7.68158292]
[1755630470518,217.99138486,176.17,176.01,7.68158292]
[1755630470519,3.01,176.16,176.01,7.68158292]
[1755630471123,3.99150309,176.15,176.01,7.68158292]
[1755630471325,3.01,176.16,176.01,7.68158292]
[1755630471526,3.99385355,176.15,176.03,5.681]
[1755630471726,3.01,176.16,176.03,5.681]
[1755630471924,3.99380973,176.15,176.03,5.681]
[1755630472122,3.99619,176.14,176.03,5.681]
[1755630472323,3.01,176.16,176.04,5.6807]
[1755630472615,3.99638077,176.15,176.01,7.68158292]
[1755630472817,3.01,176.16,176.05,5.6802]
[1755630473126,3.01,176.16,176.05,7.68158292]
[1755630473326,3.01,176.16,175.99,149.56849206]
[1755630473527,3.01,176.16,176.06,7.68158292]
[1755630474428,3.01,176.16,175.99,149.56849206]
[1755630474429,3.01,176.14,176.02,7.68158292]
[1755630474725,3.01,176.14,176.01,7.68158292]
[1755630475429,3.01,176.14,175.99,149.56849206]
[1755630475626,3.01,176.14,176.03,7.68158292]
[1755630476126,3.01,176.14,176.03,13.36268292]
[1755630476329,4.0025421,176.13,176.03,7.68158292]
[1755630476526,3.01,176.16,176.03,7.68158292]
[1755630476826,4.00298011,176.15,176.03,7.68158292]
[1755630477019,3.01,176.16,176.03,7.68158292]
[1755630477226,3.01,176.14,176.03,7.68158292]
[1755630478030,4.00424073,176.13,176.03,7.68158292]
[1755630478330,3.01,176.14,176.03,7.68158292]
[1755630478525,4.00890155,176.13,176.03,7.68158292]
[1755630478827,3.01,176.14,176.03,7.68158292]
[1755630479030,4.00887302,176.13,176.03,7.68158292]
[1755630479226,3.01,176.14,176.03,7.68158292]
[1755630479427,4.01108395,176.13,176.03,7.68158292]
[1755630479625,3.01,176.14,176.03,7.68158292]
[1755630479826,4.01107781,176.13,176.03,13.36258292]
[1755630480025,3.01,176.14,176.03,7.68158292]
[1755630480320,217.99138486,176.17,176.07,7.68158292]
[1755630480927,217.99138486,176.17,176.1,5.6786]
[1755630481121,217.99138486,176.17,176.07,7.68158292]
[1755630481328,3.04,176.22,176.11,7.68158292]
[1755630481530,4.02016883,176.21,176.11,7.68158292]
[1755630481728,381.94,176.26,176.11,7.68158292]
[1755630482034,7.0588431,176.25,176.15,7.68158292]
[1755630482230,4.0188431,176.24,176.15,7.68158292]
[1755630482433,3.04,176.25,176.16,5.6768]
[1755630482631,4.01852602,176.24,176.15,7.68158292]
[1755630482827,4.01790857,176.23,176.15,7.68158292]
[1755630483027,4.01781933,176.22,176.13,5.6777]
[1755630483235,3.04,176.25,176.11,7.68158292]
[1755630483535,3.04,176.23,176.11,7.68158292]
[1755630483740,3.04,176.21,176.08,150.64]
[1755630483938,4.01629188,176.2,176.08,150.64]
[1755630484135,4.01710494,176.19,176.08,156.3192]
[1755630484334,3.04,176.21,176.08,156.3192]
[1755630484535,4.01587826,176.2,176.08,150.64]
[1755630484837,4.01587826,176.19,176.08,150.64]
[1755630485034,7.05587826,176.18,176.08,150.64]
[1755630485339,4.01587826,176.17,176.08,150.64]
[1755630485528,4.01587826,176.16,176.08,150.64]
[1755630485732,3.04,176.18,176.08,150.64]
[1755630486038,3.04,176.18,176.09,7.68158292]
[1755630486239,3.04,176.18,176.09,13.36048292]
[1755630486438,4.01795465,176.17,176.09,7.68158292]
[1755630486631,3.04,176.18,176.09,7.68158292]
[1755630486834,4.01720538,176.17,176.09,7.68158292]
[1755630487137,3.04,176.22,176.09,7.68158292]
[1755630487338,4.01742817,176.21,176.1,5.6786]
[1755630487538,3.04,176.19,176.08,150.64]
[1755630487739,4.01742817,176.18,176.08,150.64]
[1755630487940,3.04,176.24,176.12,7.68158292]
[1755630488139,4.0185463,176.23,176.13,7.68158292]
[1755630488347,4.0185463,176.22,176.13,7.68158292]
[1755630488547,3.04,176.24,176.13,7.68158292]
[1755630488746,4.01780552,176.23,176.13,7.68158292]
[1755630488946,4.01780552,176.22,176.13,7.68158292]
[1755630489150,4.01811758,176.21,176.13,7.68158292]
[1755630489341,3.04,176.21,176.13,7.68158292]
[1755630489549,3.04,176.21,176.12,7.68158292]
[1755630490554,3.04,176.21,176.13,5.6777]
[1755630490760,3.04,176.21,176.12,7.68158292]
[1755630491147,4.01696042,176.2,176.12,7.68158292]
[1755630491343,3.04,176.21,176.12,7.68158292]
[1755630491547,4.01686732,176.2,176.12,7.68158292]
[1755630491743,3.04,176.21,176.12,7.68158292]
[1755630491947,3.04,176.21,176.1,7.68158292]
[1755630491948,4.01720151,176.2,176.1,7.68158292]
[1755630492245,3.04,176.21,176.11,5.6783]
[1755630492747,3.04,176.21,176.1,7.68158292]
[1755630492949,3.04,176.19,176.1,7.68158292]
[1755630493249,3.04,176.17,176.08,150.64]
[1755630493845,3.04,176.17,176.09,5.679]
[1755630494046,3.04,176.21,176.1,7.68158292]
[1755630494252,4.02107142,176.2,176.1,7.68158292]
[1755630494447,3.04,176.21,176.1,13.36018292]
[1755630494752,4.02013348,176.2,176.1,7.68158292]
[1755630494950,3.04,176.21,176.1,7.68158292]
[1755630495155,4.01943868,176.2,176.1,13.36028292]
[1755630495355,3.04,176.21,176.1,13.36028292]
[1755630495555,4.02001982,176.2,176.11,5.6785]
[1755630495857,3.04,176.21,176.08,150.64]
[1755630496058,4.01900869,176.2,176.08,158.32158292]
[1755630496256,3.04,176.21,176.09,5.6789]
[1755630496557,4.02083468,176.2,176.08,158.32158292]
[1755630496757,4.02046691,176.19,176.08,158.32158292]
[1755630496955,3.04,176.17,176.08,158.32158292]
[1755630498351,3.04,176.17,176.08,150.64]
[1755630499256,3.04,176.17,176.05,5.6803]
[1755630499455,3.04,176.17,176.04,7.68158292]
[1755630499658,3.04,176.15,176.04,7.68158292]
[1755630500751,3.04,176.15,176.04,13.36228292]
[1755630501053,3.04,176.15,176.04,7.68158292]
[1755630501254,3.04,176.15,176.06,5.6799]
[1755630501453,3.04,176.15,176.04,7.68158292]
[1755630501859,3.04,176.15,176.06,5.6801]
[1755630502054,3.04,176.15,176.04,7.68158292]
[1755630502451,3.04,176.15,176.07,5.6797]
[1755630502855,219.48307508,176.19,176.08,7.68158292]
[1755630503049,7.06367066,176.18,176.08,7.68158292]
[1755630503255,3.04,176.18,176.08,7.68158292]
[1755630503454,4.02436977,176.17,176.08,7.68158292]
[1755630503650,3.04,176.18,176.08,7.68158292]
[1755630504160,3.04,176.18,176.08,13.36108292]
[1755630504354,3.04,176.18,176.08,7.68158292]
[1755630505356,3.04,176.18,176.04,7.68158292]
[1755630505559,3.04,176.16,176.04,7.68158292]
[1755630506160,3.04,176.16,176.03,381.7]
[1755630506362,3.04,176.16,176.05,7.68158292]
[1755630507067,3.04,176.16,176.05,13.36198292]
[1755630507471,219.48307508,176.19,176.05,7.68158292]
[1755630507663,4.02799251,176.18,176.08,5.6795]
[1755630507965,219.48307508,176.19,176.08,5.6795]
[1755630508465,219.48307508,176.19,176.05,7.68158292]
[1755630508661,219.48307508,176.19,176.09,7.68158292]
[1755630508861,219.48307508,176.19,176.09,163.56068292]
[1755630509262,219.48307508,176.19,176.09,157.88158292]
[1755630509462,219.48307508,176.19,176.09,163.56058292]
[1755630510370,219.48307508,176.19,176.09,157.88158292]
[1755630511362,7.22238736,176.18,176.09,157.88158292]
[1755630511567,3.2,176.18,176.09,157.88158292]
[1755630512067,3.2,176.18,176.09,150.2]
[1755630512262,4.0230751,176.17,176.09,150.2]
[1755630512465,3.2,176.16,176.09,150.2]
[1755630515770,216.44307508,176.19,176.09,157.88158292]
[1755630516365,216.44307508,176.19,176.1,5.6787]
[1755630516569,216.44307508,176.19,176.09,157.88158292]
[1755630516873,216.44307508,176.19,176.09,150.2]
[1755630517169,4.02724044,176.18,176.09,150.2]
[1755630517367,216.44307508,176.19,176.09,155.879]
[1755630517569,4.02745241,176.18,176.09,150.2]
[1755630517769,216.44307508,176.19,176.09,150.2]
[1755630517968,216.44307508,176.19,176.11,5.6783]
[1755630518270,381.56,176.24,176.12,7.68158292]
[1755630518271,3.2,176.24,176.12,7.68158292]
[1755630518465,4.02841187,176.23,176.15,5.677]
[1755630518660,3.2,176.24,176.12,7.68158292]
[1755630518859,4.02867497,176.23,176.13,5.6778]
[1755630519067,7.22886667,176.22,176.12,7.68158292]
[1755630519267,7.22886667,176.21,176.12,7.68158292]
[1755630519568,4.02851791,176.2,176.12,7.68158292]
[1755630519768,3.2,176.21,176.12,7.68158292]
[1755630519970,4.02817481,176.2,176.12,7.68158292]
[1755630520165,3.2,176.21,176.12,7.68158292]
[1755630520365,4.02799754,176.2,176.12,7.68158292]
[1755630520570,3.2,176.21,176.12,7.68158292]
[1755630521273,4.02645873,176.2,176.12,7.68158292]
[1755630521471,3.2,176.21,176.12,7.68158292]
[1755630521672,4.02653086,176.2,176.12,7.68158292]
[1755630521970,4.02653086,176.19,176.12,7.68158292]
[1755630522174,3.2,176.21,176.12,7.68158292]
[1755630522372,4.02626685,176.2,176.12,7.68158292]
[1755630522666,4.02626685,176.19,176.12,7.68158292]
[1755630522867,3.2,176.21,176.12,7.68158292]
[1755630523069,4.02552774,176.2,176.12,7.68158292]
[1755630523268,4.02552774,176.19,176.12,7.68158292]
[1755630523464,3.2,176.21,176.12,7.68158292]
[1755630523664,4.02635639,176.2,176.12,7.68158292]
[1755630523868,4.02633758,176.19,176.12,7.68158292]
[1755630524067,3.2,176.21,176.12,7.68158292]
[1755630524268,4.0271782,176.2,176.12,7.68158292]
[1755630524469,4.0271782,176.19,176.12,7.68158292]
[1755630524667,3.2,176.21,176.12,7.68158292]
[1755630524869,4.02766584,176.2,176.11,7.68158292]
[1755630525065,4.02802633,176.19,176.11,7.68158292]
[1755630525271,7.22779896,176.18,176.11,7.68158292]
[1755630525466,3.2,176.18,176.11,7.68158292]
[1755630525672,3.2,176.18,176.09,150.2]
[1755630526574,4.02808318,176.17,176.09,150.2]
[1755630526877,3.2,176.18,176.09,150.2]
[1755630527183,4.0282612,176.17,176.09,150.2]
[1755630527375,3.2,176.18,176.09,150.2]
[1755630527670,4.02970019,176.17,176.09,150.2]
[1755630527878,3.2,176.16,176.09,150.2]
[1755630528071,3.2,176.16,176.04,7.68158292]
[1755630528373,3.2,176.14,176.03,150.12]
[1755630528582,3.2,176.12,175.99,531.16849206]
[1755630528881,220.64344244,176.15,175.99,536.85079206]
[1755630528882,3.2,176.1,175.99,536.85079206]
[1755630529179,4.02976434,176.09,175.99,531.16849206]
[1755630529477,4.02976434,176.08,175.99,531.16849206]
[1755630529672,3.2,176.1,175.99,531.16849206]
[1755630529871,4.02636142,176.09,175.99,531.16849206]
[1755630530066,3.2,176.1,175.99,536.85089206]
[1755630530273,4.02654284,176.09,175.99,536.85089206]
[1755630530474,3.2,176.1,175.99,536.85089206]
[1755630530674,4.02435655,176.09,175.99,536.85089206]
[1755630530975,3.2,176.1,175.99,531.16849206]
[1755630531175,3.2,176.1,176.0,7.68158292]
[1755630531476,3.2,176.14,176.01,150.12]
[1755630531672,4.02342533,176.13,176.01,150.12]
[1755630531874,7.22342533,176.12,176.01,150.12]
[1755630532177,4.02342533,176.11,176.01,150.12]
[1755630532479,7.22342533,176.1,176.01,150.12]
[1755630532677,3.2,176.1,176.01,150.12]
[1755630534079,3.2,176.1,176.0,7.68158292]
[1755630534979,3.2,176.14,176.0,7.68158292]
[1755630535178,3.2,176.12,176.01,5.6815]
[1755630535376,4.0174132,176.11,176.01,5.6815]
[1755630535571,3.2,176.12,176.01,5.6815]
[1755630535779,4.01700032,176.11,176.02,5.6814]
[1755630535981,3.2,176.12,176.02,5.6814]
[1755630536278,4.01706036,176.11,176.03,5.6811]
[1755630536474,3.2,176.12,176.03,5.6811]
[1755630537077,3.2,176.12,176.02,5.6813]
[1755630537478,3.2,176.12,176.0,7.68158292]
[1755630537676,3.2,176.12,176.0,13.36358292]
[1755630538280,2.95,176.1,176.0,7.70158292]
[1755630539379,2.95,176.1,176.01,0.02]
[1755630540176,2.95,176.14,176.04,7.68158292]
[1755630540372,220.64344244,176.15,176.06,0.02]
[1755630540576,220.64344244,176.15,176.07,5.6796]
[1755630540775,220.64344244,176.15,176.06,0.02]
[1755630541281,220.64344244,176.15,176.06,5.6999]
[1755630542075,220.64344244,176.15,176.06,0.02]
[1755630542275,2.95,176.14,176.06,0.02]
[1755630542475,2.95,176.14,176.06,5.7001]
[1755630542678,2.95,176.14,176.06,0.02]
[1755630544177,2.95,176.14,176.06,5.7001]
[1755630544483,2.95,176.14,176.06,0.02]
[1755630549885,2.95,176.14,176.05,150.1]
[1755630550080,220.64344244,176.15,176.05,150.1]
[1755630550081,2.95,176.12,176.05,150.1]
[1755630551583,2.95,176.12,176.01,7.68158292]
[1755630551984,2.95,176.12,175.99,681.14849206]
[1755630552286,2.95,176.12,175.99,686.83069206]
[1755630553483,4.00973985,176.11,175.99,686.83069206]
[1755630553689,2.95,176.12,175.99,686.83069206]
[1755630553885,2.95,176.1,175.99,686.83069206]
[1755630556192,2.95,176.1,175.99,681.16849206]
[1755630556387,2.95,176.1,176.01,4.93010469]
[1755630557091,2.95,176.1,176.01,4.95010469]
[1755630557287,2.95,176.1,176.01,5.7016]
[1755630557492,2.95,176.1,176.02,4.93010469]
[1755630557694,2.95,176.1,176.05,4.93010469]
[1755630557894,2.95,176.1,176.06,0.02]
[1755630558492,2.95,176.1,176.04,149.94]
[1755630559693,2.95,176.1,176.02,149.92]
[1755630559890,2.95,176.1,176.03,0.02]
[1755630560996,2.95,176.14,176.03,0.02]
[1755630562497,2.95,176.12,176.03,0.02]
[1755630564192,2.95,176.12,176.02,13.34403444]
[1755630564399,2.95,176.1,175.99,382.76583]
[1755630565697,7.66293444,176.1,175.99,1.16583]
[1755630565897,220.64344244,176.15,175.99,1.16583]
[1755630565898,2.95,176.08,175.99,1.16583]
[1755630566195,2.95,176.06,175.99,1.16583]
[1755630569398,2.95,176.06,175.99,6.84793]
[1755630569599,2.98,176.09,175.99,1.16583]
[1755630570099,2.98,176.09,176.0,5.6817]
[1755630570300,2.98,176.09,175.99,1.16583]
[1755630571200,2.98,176.09,176.01,5.6816]
[1755630571795,149.86,176.12,176.0,7.66293444]
[1755630571996,4.01048097,176.11,176.0,7.66293444]
[1755630572196,2.98,176.13,176.0,7.66293444]
[1755630572503,4.01208903,176.12,176.0,7.66293444]
[1755630572695,2.98,176.13,176.0,7.66293444]
[1755630572897,4.0120902,176.12,176.03,7.66293444]
[1755630573107,2.98,176.13,176.03,7.66293444]
[1755630573304,4.01208982,176.12,176.03,7.66293444]
[1755630573507,2.98,176.13,175.99,8.82876444]
[1755630573809,2.98,176.1,175.99,8.82876444]
[1755630574101,2.98,176.08,175.99,8.82876444]
[1755630574801,2.98,176.08,175.99,1.16583]
[1755630575100,2.98,176.06,175.99,1.16583]
[1755630576203,4.00790484,176.05,175.99,1.16583]
[1755630576407,6.13280955,176.11,175.99,1.16583]
[1755630576596,2.98,176.02,175.99,1.16583]
[1755630577011,2.98,176.06,175.99,1.16583]
[1755630577202,4.0066012,176.05,175.99,1.16583]
[1755630577505,2.98,176.06,175.99,1.16583]
[1755630577704,4.00566551,176.05,175.99,1.16583]
[1755630577903,2.98,176.06,175.99,1.16583]
[1755630578105,4.00566551,176.05,175.99,1.16583]
[1755630578306,2.98,176.06,175.99,1.16583]
[1755630580814,2.98,176.1,175.99,8.82876444]
[1755630581310,2.98,176.1,176.02,5.6814]
[1755630581612,2.98,176.1,175.99,158.56876444]
[1755630581911,2.98,176.14,176.03,7.66293444]
[1755630582118,220.64344244,176.15,176.07,7.66293444]
[1755630582318,220.64344244,176.15,176.07,157.38293444]
[1755630582510,2.98,176.24,176.11,7.66293444]
[1755630583112,2.98,176.28,176.15,7.66293444]
[1755630583319,2.98,176.28,176.19,7.66293444]
[1755630583618,163.51574399,176.4,176.23,7.66293444]
[1755630583818,2.98,176.33,176.23,7.66293444]
[1755630585319,2.98,176.33,176.2,7.66293444]
[1755630585517,2.98,176.33,176.2,13.33853444]
[1755630585719,215.38414011,176.36,176.25,7.66293444]
[1755630586212,2.98,176.35,176.25,7.66293444]
[1755630586915,215.38414011,176.36,176.25,7.66293444]
[1755630588520,215.38414011,176.36,176.27,5.6731]
[1755630588921,215.38414011,176.36,176.29,7.66293444]
[1755630589918,2.98,176.42,176.29,7.66293444]
[1755630589919,2.98,176.42,176.33,7.66293444]
[1755630590522,2.98,176.42,176.29,7.66293444]
[1755630590720,2.98,176.42,176.33,7.66293444]
[1755630591126,2.98,176.42,176.29,7.66293444]
[1755630591320,2.98,176.42,176.31,5.672]
[1755630591524,2.98,176.42,176.29,7.66293444]
[1755630592620,2.98,176.42,176.26,157.16293444]
[1755630593021,2.98,176.4,176.26,149.5]
[1755630593328,2.98,176.39,176.26,149.5]
[1755630593529,2.98,176.39,176.22,7.66293444]
[1755630594025,2.98,176.39,176.27,5.6733]
[1755630594241,2.98,176.39,176.26,7.66293444]
[1755630595123,2.98,176.39,176.26,13.33663444]
[1755630596327,2.98,176.39,176.26,7.66293444]
[1755630596835,2.98,176.39,176.24,149.44]
[1755630597932,2.98,176.39,176.24,155.1142]
[1755630598533,2.98,176.39,176.24,149.44]
[1755630600336,3.02,176.38,176.22,7.66293444]
[1755630600533,3.02,176.38,176.21,1.17437]
[1755630600534,7.66293444,176.35,176.21,1.17437]
[1755630600729,3.02,176.34,176.21,1.17437]
[1755630601528,3.02,176.34,176.21,8.83730444]
[1755630602228,3.02,176.34,176.21,1.17437]
[1755630602929,3.02,176.34,176.21,8.83730444]
[1755630603331,3.02,176.34,176.21,1.17437]
[1755630605036,369.34573572,176.4,176.21,1.17437]
[1755630605037,3.02,176.32,176.21,1.17437]
[1755630606729,3.02,176.32,176.21,6.84957]
[1755630606932,3.02,176.32,176.21,1.17437]
[1755630609825,3.02,176.32,176.22,5.6748]
[1755630610636,3.02,176.32,176.23,5.6746]
[1755630610836,3.02,176.32,176.21,1.17437]
[1755630611237,3.02,176.32,176.21,6.84957]
[1755630612131,3.02,176.32,176.22,5.675]
[1755630612339,3.02,176.32,176.21,1.17437]
[1755630612738,3.02,176.32,176.23,5.6746]
[1755630612935,3.02,176.32,176.21,1.17437]
[1755630615937,160.92400354,176.31,176.21,1.17437]
[1755630616140,3.02,176.29,176.12,7.66293444]
[1755630616437,3.02,176.26,176.11,1.17]
[1755630616639,3.94261789,176.25,176.11,1.17]
[1755630616840,3.02,176.24,176.11,1.17]
[1755630617140,381.34,176.3,176.08,149.3]
[1755630617141,3.02,176.22,176.08,149.3]
[1755630617435,3.02,176.22,176.1,5.6787]
[1755630617636,3.02,176.22,176.11,1.17]
[1755630618237,3.02,176.22,176.11,8.83293444]
[1755630618442,3.02,176.26,176.12,1.17]
[1755630618843,3.02,176.26,176.12,6.8481]
[1755630619341,3.02,176.26,176.15,1.17]
[1755630622041,3.02,176.26,176.16,6.8467]
[1755630622241,3.02,176.26,176.16,1.17]
[1755630622741,3.02,176.26,176.16,6.8466]
[1755630622940,3.02,176.26,176.16,1.17]
[1755630623141,384.36,176.3,176.16,1.17]
[1755630623337,3.96680616,176.29,176.18,5.6759]
[1755630623645,384.36,176.3,176.19,1.17]
[1755630623840,3.02,176.28,176.19,1.17]
[1755630624042,3.9677682,176.27,176.19,1.17]
[1755630625145,3.02,176.28,176.19,1.17]
[1755630625345,3.97890601,176.27,176.19,1.17]
[1755630625546,3.02,176.28,176.19,1.17]
[1755630625847,3.9789083,176.27,176.19,1.17]
[1755630626042,3.02,176.28,176.19,1.17]
[1755630626237,3.97890807,176.27,176.19,1.17]
[1755630626446,3.02,176.25,176.15,8.83293444]
[1755630626646,3.98314562,176.24,176.15,8.83293444]
[1755630626948,3.98309063,176.23,176.15,1.17]
[1755630627136,3.98271494,176.22,176.15,1.17]